bitfinex/quotes_ETHUSD_20250821
["timestamp","ask_amount","ask_price","bid_price","bid_amount"]
[1755755618471,0.1172,4325.6,4325.5,3.1172]
[1755755618683,0.1172,4325.6,4325.5,6.6692]
[1755755620091,0.1172,4325.6,4325.5,7.1067]
[1755755620394,0.1172,4325.6,4325.5,7.4057]
[1755755620395,0.002,4325.6,4325.5,7.4057]
[1755755621069,0.002,4325.6,4325.5,7.1067]
[1755755621268,0.002,4325.6,4325.5,3.5547]
[1755755621469,0.002,4325.6,4325.5,7.12981871]
[1755755621659,0.002,4325.6,4325.5,3.5547]
[1755755621859,0.002,4325.6,4325.5,3.57781871]
[1755755622161,0.002,4325.6,4325.5,7.1067]
[1755755622355,0.002,4325.6,4325.5,3.5547]
[1755755622551,0.002,4325.6,4325.5,7.4074]
[1755755622781,0.002,4325.6,4325.5,9.44617376]
[1755755623392,0.002,4325.6,4325.5,5.45667376]
[1755755623695,0.002,4325.6,4325.5,15.06483765]
[1755755625702,0.002,4325.6,4325.5,14.94763765]
[1755755628704,0.101,4325.6,4325.5,0.1152]
[1755755628903,0.2188,4325.6,4325.1,0.001]
[1755755629200,0.2188,4325.6,4325.2,3.551]
[1755755629501,0.1178,4325.5,4325.2,3.551]
[1755755629796,0.0992,4325.3,4325.2,3.551]
[1755755629989,0.2168,4325.3,4325.2,3.551]
[1755755631600,0.2168,4325.3,4325.1,0.001]
[1755755631773,0.0992,4325.3,4325.2,3.551]
[1755755631976,0.0992,4325.3,4325.1,0.001]
[1755755632483,0.2172,4325.3,4325.2,3.551]
[1755755633090,0.2172,4325.3,4325.1,0.001]
[1755755633290,0.0992,4325.3,4325.2,3.551]
[1755755634008,0.2172,4325.3,4325.1,0.001]
[1755755634307,0.0992,4325.3,4325.2,3.551]
[1755755635110,0.0992,4325.3,4325.1,0.001]
[1755755635312,0.0992,4325.3,4325.2,3.551]
[1755755637197,0.0992,4325.3,4325.1,0.001]
[1755755637880,0.0992,4325.3,4325.2,3.551]
[1755755638413,7.62353765,4325.3,4325.1,0.001]
[1755755638617,7.62353765,4325.3,4325.2,3.551]
[1755755638819,0.116,4325.2,4325.1,0.001]
[1755755639017,0.116,4325.2,4325.1,3.552]
[1755755639313,0.116,4325.2,4325.1,4.33122085]
[1755755639476,0.116,4325.2,4325.1,3.87582085]
[1755755639679,0.116,4325.2,4325.1,4.33122085]
[1755755640178,0.116,4325.2,4325.1,4.3081]
[1755755641715,0.116,4325.2,4325.1,3.552]
[1755755641883,0.116,4325.2,4325.1,0.7571]
[1755755642082,0.116,4325.2,4325.1,4.3081]
[1755755642698,0.1172,4325.2,4325.1,0.001]
[1755755642903,0.1172,4325.2,4325.1,3.552]
[1755755644182,0.1172,4325.2,4325.1,0.001]
[1755755644385,0.1172,4325.2,4325.1,3.552]
[1755755645017,0.1172,4325.2,4325.1,0.001]
[1755755645195,0.1172,4325.2,4325.1,3.552]
[1755755645919,0.116,4325.2,4325.1,3.552]
[1755755646219,0.116,4325.2,4325.1,4.3081]
[1755755646988,0.002,4325.6,4325.1,4.3081]
[1755755647191,0.116,4325.2,4325.1,3.87582085]
[1755755647719,0.002,4325.6,4325.1,3.87582085]
[1755755647720,0.002,4325.6,4325.1,6.28225268]
[1755755647925,0.1152,4325.5,4325.2,0.4554]
[1755755648125,0.1152,4325.5,4325.4,0.3007]
[1755755648498,0.1152,4325.5,4325.4,0.7561]
[1755755649121,0.002,4325.6,4325.4,0.7561]
[1755755649424,0.002,4325.6,4325.5,5.21266248]
[1755755649632,0.002,4325.6,4325.5,8.60544377]
[1755755651140,0.002,4325.6,4325.5,8.49024377]
[1755755652851,0.002,4325.6,4325.5,0.3007]
[1755755653019,0.1172,4325.6,4325.5,4.33011871]
[1755755656330,0.1172,4325.6,4325.5,0.77911871]
[1755755656554,0.1172,4325.6,4325.5,4.306]
[1755755657750,0.1172,4325.6,4325.5,0.756]
[1755755658120,0.1172,4325.6,4325.5,4.306]
[1755755658720,0.002,4325.6,4325.5,2.26215248]
[1755755658921,0.002,4325.6,4325.5,5.81215248]
[1755755659121,0.002,4325.6,4325.5,5.78903377]
[1755755659348,0.002,4325.6,4325.5,2.23903377]
[1755755659528,0.002,4325.6,4325.5,13.33649013]
[1755755659730,0.002,4325.6,4325.5,13.31337142]
[1755755661021,0.002,4325.6,4325.5,2.23903377]
[1755755661221,0.002,4325.6,4325.5,5.78903377]
[1755755663253,0.002,4325.6,4325.5,2.23903377]
[1755755663455,0.002,4325.6,4325.5,4.32911871]
[1755755663957,0.002,4325.6,4325.5,0.77911871]
[1755755664160,0.002,4325.6,4325.5,4.32911871]
[1755755664456,0.002,4325.6,4325.5,0.77911871]
[1755755664753,0.002,4325.6,4325.5,0.756]
[1755755664944,0.002,4325.6,4325.5,4.306]
[1755755665128,0.002,4325.6,4325.5,4.77123871]
[1755755665959,0.002,4325.6,4325.5,1.22123871]
[1755755666128,0.002,4325.6,4325.5,4.306]
[1755755667360,0.002,4325.6,4325.5,0.756]
[1755755667558,0.002,4325.6,4325.5,4.306]
[1755755667725,0.002,4325.6,4325.5,0.756]
[1755755667925,0.002,4325.6,4325.3,0.1152]
[1755755668257,0.002,4325.6,4325.4,0.4553]
[1755755668434,0.002,4325.6,4325.5,3.55]
[1755755668636,0.002,4325.6,4325.5,3.8627]
[1755755668837,0.002,4325.6,4325.5,4.317]
[1755755669827,0.002,4325.6,4325.5,0.768]
[1755755670028,0.002,4325.6,4325.5,4.317]
[1755755670363,0.002,4325.6,4325.5,0.768]
[1755755670563,0.002,4325.6,4325.5,4.317]
[1755755671537,0.002,4325.6,4325.5,4.34011871]
[1755755672349,0.002,4325.6,4325.5,0.79111871]
[1755755673067,0.002,4325.6,4325.5,4.34011871]
[1755755673263,0.002,4325.6,4325.5,0.79111871]
[1755755673470,0.002,4325.6,4325.3,3.0]
[1755755673670,0.002,4325.6,4325.4,3.549]
[1755755673837,0.002,4325.6,4325.5,0.33581871]
[1755755674038,0.002,4325.6,4325.5,0.768]
[1755755674771,0.002,4325.6,4325.5,0.79111871]
[1755755675355,0.002,4325.6,4325.5,4.34011871]
[1755755676289,0.002,4325.6,4325.1,0.117]
[1755755676290,0.66,4325.5,4325.1,0.001]
[1755755676575,7.71313765,4325.2,4325.1,0.001]
[1755755676948,0.1888,4325.2,4325.1,6.557]
[1755755677341,0.1888,4325.2,4325.1,3.001]
[1755755677559,0.1888,4325.2,4325.1,3.58012085]
[1755755677985,0.002,4325.6,4325.2,3.0]
[1755755678283,0.002,4325.6,4325.5,0.3127]
[1755755678451,0.002,4325.6,4325.5,3.8687]
[1755755678652,0.002,4325.6,4325.5,4.324]
[1755755678857,0.002,4325.6,4325.2,2.29626183]
[1755755679378,0.002,4325.6,4325.3,3.556]
[1755755679762,0.002,4325.6,4325.1,3.4563]
[1755755679962,0.002,4325.6,4325.3,3.0]
[1755755680166,0.002,4325.6,4325.4,3.557]
[1755755681764,0.002,4325.6,4325.1,3.001]
[1755755681968,0.002,4325.6,4325.3,3.0]
[1755755682180,0.002,4325.6,4325.1,3.4563]
[1755755682491,0.002,4325.6,4325.3,3.0]
[1755755682678,0.002,4325.6,4325.1,3.4563]
[1755755682884,7.52633765,4325.6,4325.1,3.001]
[1755755683068,7.52633765,4325.6,4325.2,3.555]
[1755755683396,0.002,4325.6,4325.3,0.47841978]
[1755755683575,0.002,4325.6,4325.5,0.3056]
[1755755683776,0.002,4325.6,4325.5,0.32871871]
[1755755683979,0.101,4325.6,4325.1,0.001]
[1755755684283,0.101,4325.6,4325.2,3.557]
[1755755684993,0.002,4325.6,4325.3,0.4553]
[1755755685163,0.002,4325.6,4325.4,4.0113]
[1755755685685,0.002,4325.6,4325.5,4.3169]
[1755755686296,0.1172,4325.6,4325.5,4.3169]
[1755755686710,0.1172,4325.6,4325.5,3.8616]
[1755755686879,0.1172,4325.6,4325.5,3.556]
[1755755687383,0.1172,4325.6,4325.2,0.4553]
[1755755687594,0.1172,4325.6,4325.3,4.0113]
[1755755687794,0.1172,4325.6,4325.3,0.4553]
[1755755688204,0.1172,4325.6,4325.4,3.554]
[1755755689401,0.099,4325.5,4325.1,0.001]
[1755755689605,0.099,4325.5,4325.2,3.554]
[1755755690073,0.099,4325.5,4325.1,0.001]
[1755755690276,0.099,4325.5,4325.2,3.553]
[1755755690692,0.099,4325.5,4325.1,0.4563]
[1755755690883,0.1172,4325.6,4325.3,3.552]
[1755755691083,0.1172,4325.6,4325.3,4.0073]
[1755755691371,0.1172,4325.6,4325.4,3.552]
[1755755691705,0.1172,4325.6,4325.1,0.001]
[1755755691900,0.1152,4325.3,4325.1,0.001]
[1755755692205,0.1152,4325.3,4325.2,3.551]
[1755755692574,0.1152,4325.3,4325.2,0.7609]
[1755755692771,0.1152,4325.3,4325.2,4.3119]
[1755755692977,0.1152,4325.3,4325.2,3.551]
[1755755693203,0.2142,4325.3,4325.2,3.551]
[1755755693409,0.2142,4325.3,4325.1,0.001]
[1755755693576,0.2142,4325.3,4325.2,3.551]
[1755755693914,0.2142,4325.3,4325.1,0.001]
[1755755694119,0.2142,4325.3,4325.2,3.553]
[1755755694120,0.1152,4325.3,4325.2,3.553]
[1755755694408,0.1152,4325.3,4325.2,4.3139]
[1755755696209,0.1152,4325.3,4325.2,6.67603963]
[1755755699978,0.002,4325.6,4325.3,3.0]
[1755755700179,0.002,4325.6,4325.5,0.3056]
[1755755700681,0.002,4325.6,4325.5,0.7609]
[1755755701799,0.002,4325.6,4325.5,3.7609]
[1755755701980,0.002,4325.6,4325.5,5.91905644]
[1755755702309,0.002,4325.6,4325.5,5.89593773]
[1755755703681,0.002,4325.6,4325.5,10.08393773]
[1755755705518,0.002,4325.6,4325.5,13.63393773]
[1755755706018,0.002,4325.6,4325.5,12.75783773]
[1755755706216,0.002,4325.6,4325.5,10.738]
[1755755706513,0.002,4325.6,4325.5,11.4989]
[1755755706719,0.002,4325.6,4325.5,7.9489]
[1755755707016,0.002,4325.6,4325.5,10.738]
[1755755707215,0.1908,4325.6,4325.5,4.188]
[1755755707421,0.306,4325.6,4325.5,3.549]
[1755755707807,0.306,4325.6,4325.1,0.001]
[1755755708112,0.116,4325.2,4325.1,0.001]
[1755755708317,0.3032,4325.2,4325.1,0.001]
[1755755708525,7.85803765,4325.2,4325.1,0.001]
[1755755708686,7.85803765,4325.2,4325.1,3.551]
[1755755709023,7.85803765,4325.2,4325.1,0.001]
[1755755709916,7.85803765,4325.2,4325.1,3.551]
[1755755710319,7.85803765,4325.2,4325.1,0.001]
[1755755710500,7.85803765,4325.2,4325.1,3.55]
[1755755711088,7.85803765,4325.2,4325.1,3.001]
[1755755711313,7.82753765,4325.2,4325.1,6.55]
[1755755711523,7.82753765,4325.2,4325.1,0.001]
[1755755712746,0.116,4325.2,4325.1,3.57312085]
[1755755712894,0.116,4325.2,4325.1,3.55]
[1755755713094,0.215,4325.2,4325.1,3.55]
[1755755713730,0.215,4325.2,4325.1,0.001]
[1755755713901,7.73933765,4325.2,4325.1,3.551]
[1755755715526,7.73933765,4325.2,4325.1,0.001]
[1755755717221,0.215,4325.2,4325.1,0.001]
[1755755717441,7.73933765,4325.2,4325.1,0.001]
[1755755717743,7.73933765,4325.2,4325.1,3.551]
[1755755718741,7.73933765,4325.2,4325.1,0.001]
[1755755719198,7.73933765,4325.2,4325.1,3.551]
[1755755719632,7.73933765,4325.2,4325.1,0.001]
[1755755723534,0.116,4325.2,4325.1,0.001]
[1755755724110,0.2141,4325.2,4325.1,0.001]
[1755755726448,0.2141,4325.2,4325.1,3.551]
[1755755726953,7.4241,4325.2,4325.1,0.001]
[1755755727164,7.5421,4325.2,4325.1,0.001]
[1755755728152,7.4241,4325.2,4325.1,0.001]
[1755755728518,3.66,4325.1,4324.3,0.001]
[1755755728735,11.39933765,4324.4,4324.3,0.001]
[1755755728943,14.96133765,4324.4,4324.3,0.001]
[1755755729157,15.07913765,4324.4,4324.3,0.001]
[1755755733467,15.07913765,4324.4,4322.8,0.02]
[1755755733468,3.66,4324.3,4322.8,0.02]
[1755755733763,3.8776,4324.3,4322.8,0.02]
[1755755734132,3.8776,4324.3,4323.1,0.4554]
[1755755734667,3.8776,4324.3,4323.4,0.001]
[1755755735022,3.7598,4324.3,4323.4,0.001]
[1755755735457,3.8776,4324.3,4323.4,0.001]
[1755755736564,3.7598,4324.3,4323.4,0.001]
[1755755737063,3.8776,4324.3,4323.4,0.001]
[1755755737269,3.7598,4324.3,4323.4,0.001]
[1755755737635,3.752754,4324.3,4323.4,0.001]
[1755755737970,14.95009165,4324.3,4323.9,0.4564]
[1755755738135,0.208754,4324.3,4324.2,0.7424]
[1755755738334,11.19733765,4324.3,4324.2,0.7424]
[1755755740133,11.95633765,4324.3,4324.2,0.001]
[1755755740333,11.85733765,4324.3,4324.2,0.001]
[1755755740671,11.95008065,4324.3,4324.2,0.001]
[1755755740869,3.649743,4324.3,4324.2,0.7424]
[1755755741076,3.673,4324.3,4324.2,0.7424]
[1755755742143,3.673,4324.3,4324.2,0.287]
[1755755742888,3.673,4324.3,4324.2,0.001]
[1755755743379,4.3342,4324.3,4323.9,0.001]
[1755755743556,8.18433765,4324.0,4323.9,0.001]
[1755755743873,3.66,4323.9,4323.4,0.001]
[1755755744175,3.7784,4323.9,4323.4,0.001]
[1755755745144,3.7772,4323.9,4323.4,0.001]
[1755755745462,3.7784,4323.9,4323.4,0.001]
[1755755745648,4.2758809,4323.9,4323.4,0.001]
[1755755747575,11.30033765,4323.5,4323.4,0.001]
[1755755747769,14.99233765,4323.5,4323.4,0.001]
[1755755748176,15.43503765,4323.5,4323.4,0.001]
[1755755748866,15.31803765,4323.5,4323.4,0.001]
[1755755749551,14.65803765,4323.5,4323.4,0.3083]
[1755755749738,8.08303765,4323.5,4323.4,0.751]
[1755755749935,4.1387,4323.5,4323.4,0.751]
[1755755750172,0.5587,4323.5,4323.4,0.751]
[1755755750674,0.116,4323.5,4323.4,0.751]
[1755755750969,3.696,4323.5,4323.4,0.751]
[1755755754247,3.696,4323.5,4323.4,0.3083]
[1755755754972,3.696,4323.5,4323.4,0.751]
[1755755755753,11.22033765,4323.5,4323.4,0.751]
[1755755760279,7.64033765,4323.5,4323.4,0.751]
[1755755760451,3.69,4323.5,4323.4,0.751]
[1755755761079,3.689,4323.5,4323.4,0.751]
[1755755762064,0.116,4323.5,4323.4,0.751]
[1755755762460,0.116,4323.5,4323.4,1.6016637]
[1755755762685,0.116,4323.5,4323.4,1.57853376]
[1755755762877,0.116,4323.5,4323.4,0.751]
[1755755764681,0.116,4323.5,4323.4,0.77412994]
[1755755765370,0.116,4323.5,4323.4,0.751]
[1755755771824,0.116,4323.5,4323.4,0.3083]
[1755755772203,0.3048,4323.5,4323.4,0.001]
[1755755773593,3.3048,4323.5,4323.4,0.001]
[1755755773796,0.116,4323.5,4323.4,0.001]
[1755755773999,3.571,4323.9,4323.4,0.7752]
[1755755774316,0.116,4323.5,4323.4,0.3122]
[1755755774487,0.116,4323.5,4323.4,7.83653765]
[1755755774688,0.116,4323.5,4323.4,9.44079142]
[1755755775421,0.116,4323.5,4323.4,1.91645377]
[1755755776211,0.116,4323.5,4323.4,0.7752]
[1755755777010,0.116,4323.5,4323.4,0.3122]
[1755755777185,0.116,4323.5,4323.4,0.7752]
[1755755777386,0.116,4323.8,4323.4,0.7752]
[1755755777689,0.116,4323.8,4323.6,7.52433765]
[1755755777903,0.116,4323.8,4323.7,0.7742]
[1755755778798,0.116,4323.8,4323.7,0.3112]
[1755755779517,0.116,4323.8,4323.4,0.464]
[1755755779720,0.002,4323.9,4323.5,0.463]
[1755755779908,0.002,4323.9,4323.7,0.3112]
[1755755780108,0.116,4323.8,4323.7,0.3112]
[1755755780491,0.116,4323.8,4323.7,0.7742]
[1755755780724,0.116,4323.8,4323.4,0.02412994]
[1755755780930,0.116,4323.5,4323.4,0.001]
[1755755781087,0.116,4323.5,4323.4,0.3122]
[1755755781624,0.116,4323.5,4323.4,0.7752]
[1755755782420,0.116,4323.5,4323.4,0.3122]
[1755755782817,0.116,4323.5,4323.4,0.7752]
[1755755783017,0.116,4323.5,4323.4,1.21052]
[1755755784302,0.116,4323.5,4323.4,0.7752]
[1755755786010,0.002,4323.8,4323.4,0.7752]
[1755755786225,0.116,4323.7,4323.5,0.4861294]
[1755755786497,0.116,4323.7,4323.6,3.8852]
[1755755787113,0.116,4323.7,4323.6,4.3482]
[1755755787320,0.116,4323.7,4323.6,4.37132887]
[1755755788322,0.116,4323.7,4323.6,4.80866176]
[1755755789315,0.116,4323.7,4323.6,4.78553289]
[1755755791332,0.116,4323.7,4323.6,1.21153289]
[1755755791508,0.116,4323.7,4323.6,0.7742]
[1755755791712,0.116,4323.7,4323.6,4.3442]
[1755755792008,0.215,4323.7,4323.6,3.57]
[1755755792219,0.116,4323.7,4323.6,3.57]
[1755755792724,0.116,4323.7,4323.6,4.3442]
[1755755793531,0.116,4323.7,4323.6,0.7742]
[1755755794344,0.116,4323.7,4323.6,0.79732887]
[1755755794549,0.116,4323.7,4323.6,0.7742]
[1755755795210,0.116,4323.7,4323.6,0.3112]
[1755755795408,0.116,4323.7,4323.5,3.57]
[1755755795811,0.116,4323.7,4323.6,3.569]
[1755755796011,0.215,4323.7,4323.4,0.001]
[1755755796212,0.215,4323.7,4323.5,3.57]
[1755755796526,0.116,4323.7,4323.5,3.57]
[1755755797421,0.116,4323.7,4323.4,0.001]
[1755755797942,0.116,4323.7,4323.5,3.569]
[1755755798142,0.116,4323.7,4323.5,3.568]
[1755755798653,0.116,4323.7,4323.4,0.464]
[1755755798654,0.116,4323.7,4323.6,0.79732887]
[1755755798821,0.116,4323.7,4323.6,4.36532887]
[1755755799731,0.116,4323.7,4323.6,4.3422]
[1755755802058,0.116,4323.7,4323.6,4.3432]
[1755755802680,0.116,4323.7,4323.6,4.78003299]
[1755755802874,0.116,4323.7,4323.6,4.80316186]
[1755755803081,0.002,4323.8,4323.6,4.80316186]
[1755755803368,0.002,4323.8,4323.7,0.4626]
[1755755803567,0.002,4323.8,4323.7,0.7674]
[1755755803774,0.002,4323.8,4323.7,2.01116995]
[1755755804140,0.002,4323.8,4323.7,2.03429828]
[1755755806340,0.002,4323.8,4323.7,2.01116995]
[1755755807252,0.002,4323.8,4323.7,5.57416995]
[1755755807966,0.002,4323.8,4323.7,2.01116995]
[1755755808593,0.002,4323.8,4323.7,5.57316995]
[1755755809554,0.002,4323.8,4323.7,5.57216995]
[1755755809870,0.002,4323.8,4323.7,2.01116995]
[1755755810071,0.002,4323.8,4323.7,5.57216995]
[1755755810748,0.002,4323.8,4323.7,2.01116995]
[1755755810949,0.002,4323.8,4323.7,5.57216995]
[1755755811177,0.002,4323.8,4323.7,2.01116995]
[1755755811384,0.002,4323.8,4323.7,5.57116995]
[1755755812178,0.002,4323.8,4323.7,4.3274]
[1755755812479,0.002,4323.8,4323.7,0.7674]
[1755755812692,0.002,4323.8,4323.7,4.3264]
[1755755813870,0.002,4323.8,4323.6,0.43783299]
[1755755813871,0.1908,4323.8,4323.6,0.001]
[1755755814285,0.1908,4323.8,4323.7,3.558]
[1755755814495,0.1908,4323.8,4323.6,0.001]
[1755755814803,0.116,4323.7,4323.6,0.001]
[1755755814984,0.3032,4323.7,4323.6,3.559]
[1755755815771,0.3032,4323.7,4323.6,0.001]
[1755755816100,0.3337,4323.7,4323.6,0.001]
[1755755818197,0.3032,4323.7,4323.6,0.001]
[1755755818405,0.9632,4323.7,4323.6,0.001]
[1755755818792,8.48753765,4323.7,4323.6,0.001]
[1755755828032,0.116,4323.7,4323.6,0.3058]
[1755755828192,0.116,4323.7,4323.6,0.7684]
[1755755834735,0.116,4323.7,4323.6,1.14775299]
[1755755835321,0.116,4323.7,4323.6,1.17088186]
[1755755835528,0.116,4323.7,4323.6,0.7684]
[1755755842940,0.116,4323.7,4323.6,4.3234]
[1755755843159,0.116,4323.7,4323.6,0.3058]
[1755755843323,0.116,4323.7,4323.6,4.295]
[1755755846522,0.116,4323.7,4323.6,0.74]
[1755755847029,0.116,4323.7,4323.6,4.295]
[1755755847333,0.116,4323.7,4323.6,0.74]
[1755755847541,0.116,4323.7,4323.6,4.295]
[1755755850856,0.116,4323.7,4323.6,5.47944676]
[1755755851040,0.002,4323.8,4323.6,13.00378441]
[1755755851241,0.002,4323.8,4323.7,0.02312833]
[1755755851549,0.002,4323.8,4323.7,0.75152833]
[1755755852146,0.002,4323.8,4323.7,0.7284]
[1755755852336,0.002,4323.8,4323.7,2.03941844]
[1755755856262,0.002,4323.8,4323.7,2.06254677]
[1755755858158,0.002,4323.8,4323.7,2.03941844]
[1755755859972,0.002,4323.8,4323.7,2.06254677]
[1755755861235,0.002,4323.8,4323.7,2.03941844]
[1755755861879,0.002,4323.8,4323.7,0.7284]
[1755755863865,0.002,4323.8,4323.7,3.554]
[1755755864279,0.217,4323.8,4323.7,3.554]
[1755755864478,0.118,4323.8,4323.7,4.00902833]
[1755755864678,0.118,4323.8,4323.7,4.31092833]
[1755755864880,0.118,4323.8,4323.7,4.74222116]
[1755755865259,0.002,4323.8,4323.7,4.74222116]
[1755755865467,0.002,4323.8,4323.7,1.18822116]
[1755755865993,0.002,4323.8,4323.7,4.74222116]
[1755755866348,0.002,4323.8,4323.7,4.71909283]
[1755755867006,0.002,4323.8,4323.7,0.73319283]
[1755755867180,0.002,4323.8,4323.7,3.554]
[1755755867878,0.101,4323.8,4323.7,3.554]
[1755755868072,0.217,4323.8,4323.7,3.554]
[1755755868702,0.118,4323.8,4323.7,3.554]
[1755755871094,0.118,4323.8,4323.7,3.553]
[1755755874620,0.118,4323.8,4323.7,3.8549]
[1755755874822,0.118,4323.8,4323.7,5.42723665]
[1755755875023,0.118,4323.8,4323.7,12.9515743]
[1755755875389,0.002,4323.8,4323.7,12.9515743]
[1755755877537,0.002,4323.9,4323.7,15.9515743]
[1755755877698,0.002,4323.9,4323.8,5.33590822]
[1755755877901,0.002,4323.9,4323.8,7.84403172]
[1755755882928,0.002,4323.9,4323.8,8.50403172]
[1755755883091,0.002,4324.3,4324.2,12.83690413]
[1755755883295,0.002,4324.3,4324.2,16.69080413]
[1755755883633,0.002,4324.3,4324.2,17.12270413]
[1755755883930,0.002,4324.3,4324.2,18.83497454]
[1755755886798,0.002,4324.3,4324.2,12.97040806]
[1755755886998,0.002,4324.3,4324.2,18.83497454]
[1755755887636,0.002,4324.3,4324.2,15.39897454]
[1755755887840,0.002,4324.3,4324.2,18.95097454]
[1755755889654,0.002,4324.3,4324.2,13.08640806]
[1755755889946,0.002,4324.3,4324.2,16.63740806]
[1755755890147,0.002,4324.3,4324.2,18.94997454]
[1755755891055,0.002,4324.3,4324.2,16.63740806]
[1755755891254,0.002,4324.3,4324.2,18.94997454]
[1755755891920,0.002,4324.3,4324.2,23.13797454]
[1755755892517,0.002,4324.4,4324.3,5.972513]
[1755755892825,0.002,4324.4,4324.3,13.27775263]
[1755755893755,0.002,4324.4,4324.3,16.82875263]
[1755755894658,0.002,4325.2,4324.6,5.97235258]
[1755755894823,0.002,4325.2,4324.6,21.54149023]
[1755755895023,0.002,4325.2,4324.6,22.10679023]
[1755755895233,0.002,4325.2,4324.6,24.46892986]
[1755755898257,0.002,4325.2,4324.6,24.46792986]
[1755755900377,0.002,4325.2,4324.6,20.91792986]
[1755755900557,0.002,4325.2,4324.6,24.46792986]
[1755755903554,0.101,4324.7,4324.6,17.19047728]
[1755755903756,0.101,4324.7,4324.6,18.37833765]
[1755755905061,0.101,4324.7,4324.6,14.19033765]
[1755755906058,0.002,4324.7,4324.6,16.50269023]
[1755755906446,0.002,4324.7,4324.6,10.64033765]
[1755755906623,0.002,4324.7,4324.6,14.18933765]
[1755755906824,0.002,4324.7,4324.6,15.88444715]
[1755755907059,0.002,4324.7,4324.6,14.18933765]
[1755755907060,0.101,4324.7,4324.6,14.18933765]
[1755755907232,0.002,4324.7,4324.6,14.18933765]
[1755755907427,0.002,4324.7,4324.6,17.25679023]
[1755755908555,0.002,4324.7,4324.6,17.91679023]
[1755755909260,0.002,4324.7,4324.6,8.0591]
[1755755909562,0.002,4324.7,4324.6,22.49121886]
[1755755911886,0.003,4324.7,4324.6,19.42376628]
[1755755912179,0.002,4324.7,4324.6,22.49121886]
[1755755912893,0.002,4324.7,4324.6,19.42376628]
[1755755913064,0.002,4324.7,4324.6,22.04191886]
[1755755913268,0.002,4324.7,4324.6,20.17886628]
[1755755913952,0.002,4324.7,4324.6,22.18541886]
[1755755914156,0.002,4324.7,4324.6,18.63641886]
[1755755914353,0.002,4324.7,4324.6,21.73611886]
[1755755914569,0.002,4324.7,4324.6,22.49121886]
[1755755916257,0.002,4324.7,4324.6,19.42376628]
[1755755916472,0.002,4324.7,4324.6,21.73611886]
[1755755916779,0.002,4324.7,4324.6,19.42276628]
[1755755917476,0.002,4324.7,4324.6,21.73511886]
[1755755917674,0.002,4324.7,4324.6,18.18711886]
[1755755917856,0.002,4324.7,4324.6,21.73511886]
[1755755918481,0.002,4324.7,4324.6,22.18441886]
[1755755918687,0.002,4324.7,4324.6,22.49021886]
[1755755919271,0.002,4324.7,4324.6,19.42276628]
[1755755919471,0.002,4324.7,4324.6,14.82833765]
[1755755919472,0.101,4324.7,4324.6,14.82833765]
[1755755919684,0.101,4324.7,4324.6,18.37633765]
[1755755920283,0.002,4324.7,4324.6,18.37633765]
[1755755921997,0.002,4324.7,4324.6,14.82833765]
[1755755922201,0.002,4324.7,4324.6,18.37633765]
[1755755923865,0.002,4324.7,4324.6,18.67743765]
[1755755924198,0.002,4324.7,4324.6,23.332234]
[1755755924403,0.002,4324.7,4324.6,19.784234]
[1755755924602,0.002,4324.7,4324.6,23.332234]
[1755755924898,0.002,4324.7,4324.6,19.784234]
[1755755925484,0.002,4324.7,4324.6,23.332234]
[1755755925970,0.002,4324.7,4324.6,19.784234]
[1755755926582,0.002,4324.7,4324.6,23.332234]
[1755755928910,0.002,4324.7,4324.6,21.01988142]
[1755755929107,0.002,4324.7,4324.6,23.332234]
[1755755932709,0.002,4324.7,4324.6,23.331234]
[1755755932906,0.002,4324.7,4324.6,21.01888142]
[1755755933106,0.002,4324.7,4324.6,20.24318142]
[1755755933605,0.002,4324.7,4324.6,20.54428142]
[1755755933787,0.002,4324.7,4324.6,23.331234]
[1755755934312,0.002,4324.7,4324.6,23.030134]
[1755755934494,0.002,4324.7,4324.6,22.555534]
[1755755934988,0.002,4324.7,4324.6,19.008534]
[1755755935184,0.002,4324.7,4324.6,22.555534]
[1755755935523,0.1908,4324.7,4324.6,20.24318142]
[1755755936225,0.1908,4324.7,4324.6,16.69618142]
[1755755936385,0.1908,4324.7,4324.6,20.24318142]
[1755755936586,0.002,4324.7,4324.6,20.24318142]
[1755755937416,0.002,4324.7,4324.6,16.69618142]
[1755755937620,0.1908,4324.7,4324.6,20.24318142]
[1755755939090,0.1908,4324.7,4324.6,16.69618142]
[1755755939290,0.1908,4324.7,4324.6,20.24218142]
[1755755940220,0.1908,4324.7,4324.6,16.69618142]
[1755755940401,0.1908,4324.7,4324.6,7.64033765]
[1755755940598,0.1908,4324.7,4324.6,11.18633765]
[1755755940925,0.1908,4324.7,4324.6,14.18633765]
[1755755945736,0.002,4324.7,4324.6,14.18633765]